lending/lending_fUSD_20240509
["ID","MTS","AMOUNT","RATE_DAILY","PERIOD"]
[326737691,1715290300121,-500.0,0.00041917,33]
[326737692,1715290300130,-680.58,0.00041917,33]
[326737693,1715290300139,-2308.93,0.00041917,33]
[326737694,1715290300149,-500.0,0.00041917,33]
[326737695,1715290300159,-500.0,0.00041917,33]
[326737696,1715290300168,-500.0,0.00041917,33]
[326737697,1715290300177,-500.0,0.00041917,33]
[326737698,1715290300187,-570.01,0.00041917,33]
[326737699,1715290300196,-500.0,0.00041917,33]
[326737700,1715290300205,-2218.23,0.00041917,33]
[326737701,1715290300214,-710.53,0.00041917,33]
[326737702,1715290300224,-500.0,0.00041917,33]
[326737703,1715290300234,-500.0,0.00041917,33]
[326737704,1715290300243,-500.0,0.00041917,33]
[326737705,1715290300253,-500.0,0.00041917,33]
[326737706,1715290300262,-500.0,0.00041917,33]
[326737707,1715290300272,-1250.78,0.00041917,33]
[326737708,1715290300281,-524.5,0.00041917,33]
[326737709,1715290300290,-500.0,0.00041917,33]
[326737710,1715290300300,-1214.5,0.00041917,33]
[326737711,1715290300309,-748.28,0.00041917,33]
[326737712,1715290300319,-1674.55,0.00041917,33]
[326737713,1715290300328,-1106.96,0.00041917,33]
[326737714,1715290300338,-3181.87,0.00041917,33]
[326737715,1715290300347,-630.26,0.00041917,33]
[326737716,1715290300356,-695.55,0.00041917,33]
[326737717,1715290300366,-500.0,0.00041917,33]
[326737718,1715290300376,-500.0,0.00041917,33]
[326737719,1715290300385,-500.0,0.00041917,33]
[326737720,1715290300394,-500.0,0.00041917,33]
[326737721,1715290300404,-1411.96,0.00041917,33]
[326737722,1715290300413,-1329.71,0.00041917,33]
[326737723,1715290300425,-500.0,0.00041917,33]
[326737724,1715290300435,-500.0,0.00041917,33]
[326737725,1715290300445,-298.54239165,0.00041917,33]
[326737726,1715290300454,-278.4696797,0.00041917,33]
[326737727,1715290300463,-500.0,0.00041917,33]
[326737728,1715290300473,-500.0,0.00041917,33]
[326737729,1715290300482,-589.21,0.00041917,33]
[326737730,1715290300492,-500.0,0.00041917,33]
[326737731,1715290300502,-1580.25,0.00041917,33]
[326737732,1715290300512,-1261.42,0.00041917,33]
[326737733,1715290300521,-500.0,0.00041917,33]
[326737734,1715290300531,-500.0,0.00041917,33]
[326737735,1715290300541,-982.84,0.00041917,33]
[326737736,1715290300552,-990.55,0.00041917,33]
[326737737,1715290300561,-529.08866166,0.00041917,33]
[326737738,1715290300571,-2734.91,0.00041917,90]
[326737739,1715290300581,-500.0,0.00041917,33]
[326737740,1715290300591,-500.0,0.00041917,33]
[326737741,1715290300600,-500.0,0.00041917,33]
[326737742,1715290300609,-3000.0,0.00041917,33]
[326737743,1715290300618,-500.0,0.00041917,33]
[326737744,1715290300627,-754.97,0.00041917,33]
[326737745,1715290300636,-1163.62,0.00041917,33]
[326737746,1715290300645,-500.0,0.00041917,33]
[326737747,1715290300654,-500.0,0.00041917,33]
[326737748,1715290300664,-1290.04,0.00041917,33]
[326737749,1715290300673,-500.0,0.00041917,33]
[326737750,1715290300682,-500.0,0.00041917,33]
[326737751,1715290300691,-500.0,0.00041917,33]
[326737752,1715290300700,-686.59,0.00041917,33]
[326737753,1715290300710,-500.0,0.00041917,30]
[326737754,1715290300719,-1168.24,0.00041917,33]
[326737755,1715290300728,-2519.14,0.00041917,33]
[326737756,1715290300738,-1010.71,0.00041917,33]
[326737757,1715290300747,-500.0,0.00041917,33]
[326737758,1715290300756,-500.0,0.00041917,33]
[326737759,1715290300765,-500.0,0.00041917,33]
[326737760,1715290300775,-1693.45,0.00041917,33]
[326737761,1715290300784,-500.0,0.00041917,33]
[326737762,1715290300794,-500.0,0.00041917,33]
[326737763,1715290300804,-500.0,0.00041917,33]
[326737764,1715290300813,-1028.53,0.00041917,33]
[326737765,1715290300823,-500.0,0.00041917,33]
[326737766,1715290300834,-500.0,0.00041917,33]
[326737767,1715290300844,-500.0,0.00041917,33]
[326737768,1715290300858,-723.96,0.00041917,33]
[326737769,1715290300869,-554.43,0.00041917,33]
[326737770,1715290300879,-500.0,0.00041917,33]
[326737771,1715290300891,-500.0,0.00041917,33]
[326737772,1715290300901,-1305.3,0.00041917,33]
[326737773,1715290300911,-500.0,0.00041917,33]
[326737774,1715290300921,-2114.59,0.00041917,33]
[326737775,1715290300935,-500.0,0.00041917,33]
[326737776,1715290300945,-500.0,0.00041917,33]
[326737777,1715290300955,-500.0,0.00041917,33]
[326737778,1715290300965,-500.0,0.00041917,33]
[326737779,1715290300974,-622.13,0.00041917,33]
[326737780,1715290300984,-500.0,0.00041917,33]
[326737781,1715290300994,-505.35,0.00041917,33]
[326737782,1715290301004,-1925.23,0.00041917,33]
[326737783,1715290301014,-741.88,0.00041917,33]
[326737784,1715290301025,-500.0,0.00041917,33]
[326737785,1715290301034,-500.0,0.00041917,33]
[326737786,1715290301043,-500.0,0.00041917,33]
[326737787,1715290301053,-553.86,0.00041917,33]
[326737788,1715290301062,-500.0,0.00041917,33]
[326737789,1715290301072,-598.59,0.00041917,33]
[326737790,1715290301081,-1589.8,0.00041917,33]
[326737791,1715290301090,-500.0,0.00041917,33]
[326737792,1715290301099,-974.29,0.00041917,33]
[326737793,1715290301109,-1678.24,0.00041917,33]
[326737794,1715290301118,-509.01301662,0.00041917,33]
[326737795,1715290301127,-585.26,0.00041917,33]
[326737796,1715290301136,-1688.22,0.00041917,33]
[326737797,1715290301145,-500.0,0.00041917,33]
[326737798,1715290301155,-653.37,0.00041917,33]
[326737799,1715290301177,-1513.03,0.00041917,33]
[326737800,1715290301186,-500.0,0.00041917,33]
[326737801,1715290301196,-2833.18,0.00041917,33]
[326737802,1715290301206,-998.08,0.00041917,33]
[326737803,1715290301215,-500.0,0.00041917,7]
[326737804,1715290301224,-500.0,0.00041917,33]
[326737805,1715290301234,-1542.27,0.00041917,33]
[326737806,1715290301243,-500.0,0.00041917,33]
[326737807,1715290301252,-1491.58,0.00041917,33]
[326737808,1715290301261,-913.79,0.00041917,33]
[326737809,1715290301270,-1372.05,0.00041917,33]
[326737810,1715290301279,-512.35317218,0.00041917,33]
[326737811,1715290301289,-784.75,0.00041917,33]
[326737812,1715290301298,-780.84,0.00041917,33]
[326737813,1715290301307,-510.59707667,0.00041917,33]
[326737814,1715290301317,-500.0,0.00041917,33]
[326737815,1715290301326,-500.0,0.00041917,33]
[326737816,1715290301335,-500.0,0.00041917,33]
[326737817,1715290301344,-500.0,0.00041917,33]
[326737818,1715290301353,-500.0,0.00041917,33]
[326737819,1715290301362,-500.0,0.00041917,33]
[326737820,1715290301371,-561.0,0.00041917,33]
[326737821,1715290301380,-500.0,0.00041917,33]
[326737822,1715290301390,-500.0,0.00041917,33]
[326737823,1715290301399,-1139.65,0.00041917,33]
[326737824,1715290301408,-2928.31,0.00041917,33]
[326737825,1715290301417,-500.0,0.00041917,33]
[326737826,1715290301426,-658.17,0.00041917,33]
[326737827,1715290301435,-500.0,0.00041917,33]
[326737828,1715290301445,-1123.05,0.00041917,33]
[326737829,1715290301454,-500.0,0.00041917,33]
[326737830,1715290301464,-3820.26,0.00041917,33]
[326737831,1715290301473,-354.07697172,0.00041917,33]
[326737832,1715290301482,-1520.63,0.00041917,33]
[326737833,1715290301491,-2100.36,0.00041917,33]
[326737834,1715290301500,-500.0,0.00041917,33]
[326737835,1715290301509,-995.14,0.00041917,33]
[326737836,1715290301519,-500.0,0.00041917,33]
[326737837,1715290301527,-559.91,0.00041917,33]
[326737838,1715290301536,-978.77,0.00041917,33]
[326737839,1715290301545,-1348.6,0.00041917,33]
[326737840,1715290301555,-500.0,0.00041917,33]
[326737841,1715290301564,-500.0,0.00041917,33]
[326737842,1715290301573,-1000.0,0.00041917,33]
[326737843,1715290301582,-500.0,0.00041917,33]
[326737844,1715290301591,-500.0,0.00041917,33]
[326737845,1715290301600,-1543.05,0.00041917,33]
[326737846,1715290301609,-500.0,0.00041917,33]
[326737847,1715290301619,-2295.38,0.00041917,33]
[326737848,1715290301629,-500.0,0.00041917,33]
[326737849,1715290301639,-500.0,0.00041917,33]
[326737850,1715290301650,-500.0,0.00041917,33]
[326737851,1715290301659,-6589.17,0.00041917,33]
[326737852,1715290301669,-529.21,0.00041917,33]
[326737853,1715290301679,-500.0,0.00041917,33]
[326737854,1715290301688,-1353.58,0.00041917,33]
[326737855,1715290301697,-500.0,0.00041917,33]
[326737856,1715290301707,-2223.51,0.00041917,33]
[326737857,1715290301716,-500.0,0.00041917,33]
[326737858,1715290301726,-500.0,0.00041917,33]
[326737859,1715290301736,-2764.55,0.00041917,33]
[326737860,1715290301745,-500.0,0.00041917,33]
[326737861,1715290301754,-1389.49,0.00041917,33]
[326737862,1715290301763,-500.0,0.00041917,33]
[326737863,1715290301773,-500.0,0.00041917,33]
[326737864,1715290301782,-500.0,0.00041917,33]
[326737865,1715290301791,-500.0,0.00041917,33]
[326737866,1715290301879,-500.0,0.00041917,33]
[326737867,1715290301890,-3134.74,0.00041917,33]
[326737868,1715290301899,-500.0,0.00041917,33]
[326737869,1715290301909,-500.0,0.00041917,33]
[326737870,1715290301918,-500.0,0.00041917,33]
[326737871,1715290301928,-500.0,0.00041917,33]
[326737872,1715290301938,-500.0,0.00041917,33]
[326737873,1715290301948,-1402.13,0.00041917,33]
[326737874,1715290301957,-884.43,0.00041917,33]
[326737875,1715290301966,-500.0,0.00041917,33]
[326737876,1715290301975,-1249.67,0.00041917,33]
[326737877,1715290301985,-500.0,0.00041917,33]
[326737878,1715290301994,-151.0,0.00041917,14]
[326737879,1715290302003,-1060.45,0.00041917,33]
[326737880,1715290302012,-500.0,0.00041917,33]
[326737881,1715290302022,-507.6588901,0.00041917,33]
[326737882,1715290302031,-500.0,0.00041917,33]
[326737883,1715290302040,-2444.07,0.00041917,33]
[326737884,1715290302049,-500.0,0.00041917,33]
[326737885,1715290302058,-500.0,0.00041917,33]
[326737886,1715290302067,-886.77,0.00041917,33]
[326737887,1715290302077,-2919.75,0.00041917,33]
[326737888,1715290302086,-500.0,0.00041917,33]
[326737889,1715290302095,-278.0,0.00041917,14]
[326737890,1715290302104,-1754.96,0.00041917,33]
[326737891,1715290302114,-500.0,0.00041917,33]
[326737892,1715290302123,-675.42,0.00041917,33]
[326737893,1715290302132,-704.38,0.00041917,33]
[326737894,1715290302141,-500.0,0.00041917,33]
[326737895,1715290302150,-1086.34,0.00041917,33]
[326737896,1715290302159,-500.0,0.00041917,33]
[326737897,1715290302168,-2843.23,0.00041917,33]
[326737898,1715290302177,-3895.74,0.00041917,33]
[326737899,1715290302186,-500.0,0.00041917,33]
[326737900,1715290302195,-500.0,0.00041917,33]
[326737901,1715290302204,-595.8,0.00041917,33]
[326737902,1715290302213,-801.75,0.00041917,33]
[326737903,1715290302222,-500.0,0.00041917,7]
[326737904,1715290302231,-3569.24,0.00041917,33]
[326737905,1715290302240,-500.0,0.00041917,33]
[326737906,1715290302249,-883.81,0.00041917,33]
[326737907,1715290302258,-376.421123,0.00041917,14]
[326737908,1715290302268,-962.01,0.00041917,33]
[326737909,1715290302277,-500.0,0.00041917,33]
[326737910,1715290302287,-500.0,0.00041917,33]
[326737911,1715290302296,-720.82,0.00041917,33]
[326737912,1715290302305,-3496.49,0.00041917,33]
[326737913,1715290302314,-376.421123,0.00041917,14]
[326737914,1715290302323,-1462.11,0.00041917,33]
[326737915,1715290302332,-1191.96,0.00041917,33]
[326737916,1715290302341,-500.0,0.00041917,33]
[326737917,1715290302351,-500.0,0.00041917,33]
[326737918,1715290302360,-561.24,0.00041917,33]
[326737919,1715290302369,-890.72,0.00041917,33]
[326737920,1715290302379,-500.0,0.00041917,33]
[326737921,1715290302388,-500.0,0.00041917,33]
[326737922,1715290302397,-2405.75,0.00041917,33]
[326737923,1715290302407,-2401.68,0.00041917,33]
[326737924,1715290302416,-1134.4,0.00041917,33]
[326737925,1715290302425,-500.0,0.00041917,33]
[326737926,1715290302434,-5248.65,0.00041917,33]
[326737927,1715290302443,-500.0,0.00041917,33]
[326737928,1715290302453,-500.0,0.00041917,33]
[326737929,1715290302462,-982.28,0.00041917,33]
[326737930,1715290302471,-1075.41,0.00041917,33]
[326737931,1715290302480,-500.0,0.00041917,33]
[326737932,1715290302489,-762.96,0.00041917,33]
[326737933,1715290302499,-9790.63,0.00041917,33]
[326737934,1715290302508,-48197.1,0.00041917,33]
[326737935,1715290302518,-525.0,0.00041917,33]
[326737936,1715290302527,-500.0,0.00041917,33]
[326737937,1715290302536,-674.49,0.00041917,33]
[326737938,1715290302545,-500.0,0.00041917,33]
[326737939,1715290302556,-500.0,0.00041917,33]
[326737940,1715290302566,-2841.86,0.00041917,33]
[326737941,1715290302575,-998.56,0.00041917,33]
[326737942,1715290302585,-876.85,0.00041917,33]
[326737943,1715290302594,-1153.85,0.00041917,33]
[326737944,1715290302603,-896.26,0.00041917,33]
[326737945,1715290302613,-3099.06,0.00041917,33]
[326737946,1715290302623,-4806.21,0.00041917,33]
[326737947,1715290302633,-500.0,0.00041917,33]
[326737948,1715290302642,-534.69727731,0.00041917,33]
[326737949,1715290302653,-557.26,0.00041917,33]
[326737950,1715290302662,-4338.33,0.00041917,33]
[326737951,1715290302671,-634.18,0.00041917,33]
[326737952,1715290302679,-8261.18,0.00041917,33]
[326737953,1715290302688,-500.0,0.00041917,33]
[326737954,1715290302697,-500.0,0.00041917,33]
[326737955,1715290302706,-4737.67,0.00041917,33]
[326737956,1715290302715,-741.9,0.00041917,33]
[326737957,1715290302724,-500.0,0.00041917,33]
[326737958,1715290302736,-500.0,0.00041917,33]
[326737959,1715290302746,-1591.45,0.00041917,33]
[326737960,1715290302755,-180.398098,0.00041917,14]
[326737961,1715290302764,-1051.23,0.00041917,33]
[326737962,1715290302773,-858.69,0.00041917,33]
[326737963,1715290302782,-6695.35,0.00041917,33]
[326737964,1715290302792,-692.15,0.00041917,33]
[326737965,1715290302801,-521.68,0.00041917,33]
[326737966,1715290302811,-500.0,0.00041917,33]
[326737967,1715290302821,-180.398098,0.00041917,14]
[326737968,1715290302830,-500.0,0.00041917,33]
[326737969,1715290302840,-673.709961,0.00041917,14]
[326737970,1715290302854,-9065.03,0.00041917,33]
[326737971,1715290302864,-309.01730027,0.00041917,33]
[326737972,1715290302873,-10329.95,0.00041917,33]
[326737973,1715290302883,-503.43,0.00041917,33]
[326737974,1715290302895,-644.28,0.00041917,33]
[326737975,1715290302905,-151.0,0.00041917,14]
[326737976,1715290302915,-500.0,0.00041917,33]
[326737977,1715290302926,-1046.8,0.00041917,33]
[326737978,1715290302936,-8148.81,0.00041917,33]
[326737979,1715290302947,-964.07,0.00041917,33]
[326737980,1715290302956,-673.709961,0.00041917,14]
[326737981,1715290302965,-540.88,0.00041917,33]
[326737982,1715290302974,-1266.57,0.00041917,33]
[326737983,1715290302983,-740.94,0.00041917,33]
[326737984,1715290302992,-500.0,0.00041917,33]
[326737985,1715290303001,-500.0,0.00041917,33]
[326737986,1715290303010,-4781.85,0.00041917,33]
[326737987,1715290303020,-12193.95,0.00041917,33]
[326737988,1715290303029,-500.0,0.00041917,33]
[326737989,1715290303038,-500.0,0.00041917,33]
[326737990,1715290303049,-500.0,0.00041917,33]
[326737991,1715290303058,-596.46,0.00041917,33]
[326737992,1715290303067,-500.0,0.00041917,33]
[326737993,1715290303076,-2636.23,0.00041917,33]
[326737994,1715290303085,-500.0,0.00041917,33]
[326737995,1715290303094,-500.0,0.00041917,33]
[326737996,1715290303103,-500.0,0.00041917,33]
[326737997,1715290303115,-9510.81,0.00041917,33]
[326737998,1715290303124,-786.31,0.00041917,33]
[326737999,1715290303135,-500.0,0.00041917,33]
[326738000,1715290303144,-1613.24,0.00041917,33]
[326738001,1715290303154,-500.0,0.00041917,33]
[326738002,1715290303163,-2975.06,0.00041917,33]
[326738003,1715290303175,-1906.9,0.00041917,33]
[326738004,1715290303185,-2720.25,0.00041917,33]
[326738005,1715290303194,-681.27,0.00041917,33]
[326738006,1715290303205,-152.64892,0.00041917,14]
[326738007,1715290303215,-1383.8,0.00041917,33]
[326738008,1715290303224,-500.0,0.00041917,33]
[326738009,1715290303235,-500.0,0.00041917,33]
[326738010,1715290303244,-152.64892,0.00041917,14]
[326738011,1715290303255,-991.73,0.00041917,33]
[326738012,1715290303265,-35344.6,0.00041917,33]
[326738013,1715290303276,-500.0,0.00041917,33]
[326738014,1715290303286,-11341.32,0.00041917,33]
[326738015,1715290303296,-500.0,0.00041917,33]
[326738016,1715290303305,-2479.43,0.00041917,33]
[326738017,1715290303315,-500.0,0.00041917,33]
[326738018,1715290303324,-500.0,0.00041917,33]
[326738019,1715290303333,-2390.25,0.00041917,33]
[326738020,1715290303343,-500.0,0.00041917,33]
[326738021,1715290303353,-3475.26,0.00041917,33]
[326738022,1715290303362,-500.0,0.00041917,33]
[326738023,1715290303372,-6900.38,0.00041917,33]
[326738024,1715290303382,-500.0,0.00041917,33]
[326738025,1715290303392,-500.0,0.00041917,33]
[326738026,1715290303401,-6241.71,0.00041917,33]
[326738027,1715290303411,-538.22,0.00041917,33]
[326738028,1715290303421,-151.0,0.00041917,14]
[326738029,1715290303430,-500.0,0.00041917,33]
[326738030,1715290303439,-487.12804978,0.00041917,33]
[326738031,1715290303449,-5843.67,0.00041917,33]
[326738032,1715290303458,-1043.22,0.00041917,33]
[326738033,1715290303468,-500.0,0.00041917,33]
[326738034,1715290303477,-1627.04,0.00041917,33]
[326738035,1715290303487,-500.0,0.00041917,33]
[326738036,1715290303496,-500.0,0.00041917,33]
[326738037,1715290303506,-2055.88,0.00041917,33]
[326738038,1715290303515,-500.0,0.00041917,33]
[326738039,1715290303527,-500.0,0.00041917,33]
[326738040,1715290303536,-966.93,0.00041917,33]
[326738041,1715290303544,-500.0,0.00041917,33]
[326738042,1715290303553,-2857.76,0.00041917,33]
[326738043,1715290303563,-940.26,0.00041917,33]
[326738044,1715290303573,-500.0,0.00041917,33]
[326738045,1715290303582,-151.0,0.00041917,14]
[326738046,1715290303592,-3421.49,0.00041917,33]
[326738047,1715290303601,-536.62092418,0.00041917,33]
[326738048,1715290303610,-648.57,0.00041917,33]
[326738049,1715290303620,-4066.58,0.00041917,33]
[326738050,1715290303629,-976.01,0.00041917,33]
[326738051,1715290303637,-3558.67,0.00041917,33]
[326738052,1715290303647,-500.0,0.00041917,33]
[326738053,1715290303657,-9596.11,0.00041917,33]
[326738054,1715290303667,-2780.95,0.00041917,33]
[326738055,1715290303678,-2774.96,0.00041917,33]
[326738056,1715290303687,-500.0,0.00041917,33]
[326738057,1715290303696,-3355.48,0.00041917,33]
[326738058,1715290303706,-513.29496815,0.00041917,33]
[326738059,1715290303715,-584.94,0.00041917,33]
[326738060,1715290303724,-500.0,0.00041917,33]
[326738061,1715290303733,-684.84,0.00041917,33]
[326738062,1715290303743,-577.23034915,0.00041917,33]
[326738063,1715290303752,-8573.63,0.00041917,33]
[326738064,1715290303762,-760.64,0.00041917,33]
[326738065,1715290303774,-997.84,0.00041917,33]
[326738066,1715290303783,-866.35,0.00041917,33]
[326738067,1715290303794,-25099.66,0.00041917,33]
[326738068,1715290303803,-5100.7,0.00041917,33]
[326738069,1715290303812,-3610.95,0.00041917,33]
[326738070,1715290303821,-1311.84,0.00041917,33]
[326738071,1715290303831,-500.0,0.00041917,33]
[326738072,1715290303840,-1893.53,0.00041917,33]
[326738073,1715290303853,-512.96584543,0.00041917,33]
[326738074,1715290303862,-2037.09,0.00041917,33]
[326738075,1715290303872,-500.0,0.00041917,33]
[326738076,1715290303881,-2842.63,0.00041917,33]
[326738077,1715290303891,-1050.16,0.00041917,33]
[326738078,1715290303900,-3828.54,0.00041917,33]
[326738079,1715290303909,-500.0,0.00041917,33]
[326738080,1715290303919,-1948.69,0.00041917,33]
[326738081,1715290303929,-894.4,0.00041917,33]
[326738082,1715290303938,-500.0,0.00041917,33]
[326738083,1715290303947,-2384.76,0.00041917,33]
[326738084,1715290303956,-3077.36,0.00041917,33]
[326738085,1715290303965,-500.0,0.00041917,33]
[326738086,1715290303974,-2870.56,0.00041917,33]
[326738087,1715290303984,-500.0,0.00041917,33]
[326738088,1715290303993,-4456.0,0.00041917,33]
[326738089,1715290304002,-500.0,0.00041917,33]
[326738090,1715290304011,-1485.92,0.00041917,33]
[326738091,1715290304021,-500.0,0.00041917,33]
[326738092,1715290304030,-856.05,0.00041917,33]
[326738093,1715290304039,-1428.6,0.00041917,33]
[326738094,1715290304049,-500.0,0.00041917,33]
[326738095,1715290304058,-9976.29,0.00041917,33]
[326738096,1715290304067,-593.12,0.00041917,33]
[326738097,1715290304077,-6123.57,0.00041917,33]
[326738098,1715290304086,-500.0,0.00041917,33]
[326738099,1715290304095,-7760.5,0.00041917,33]
[326738100,1715290304104,-1764.26,0.00041917,33]
[326738101,1715290304114,-242.866369,0.00041917,14]
[326738102,1715290304123,-2666.68,0.00041917,33]
[326738103,1715290304132,-787.66,0.00041917,33]
[326738104,1715290304141,-24441.76,0.00041917,33]
[326738105,1715290304150,-500.0,0.00041917,33]
[326738106,1715290304159,-500.0,0.00041917,33]
[326738107,1715290304168,-500.0,0.00041917,33]
[326738108,1715290304178,-1012.93,0.00041917,33]
[326738109,1715290304187,-608.1,0.00041917,33]
[326738110,1715290304196,-511.78124174,0.00041917,33]
[326738111,1715290304206,-500.0,0.00041917,33]
[326738112,1715290304215,-500.0,0.00041917,33]
[326738113,1715290304224,-12447.49,0.00041917,33]
[326738114,1715290304234,-1097.98,0.00041917,33]
[326738115,1715290304243,-14701.38,0.00041917,33]
[326738116,1715290304252,-12272.44,0.00041917,33]
[326738117,1715290304262,-2299.3,0.00041917,33]
[326738118,1715290304273,-500.0,0.00041917,33]
[326738119,1715290304282,-522.3304448,0.00041917,33]
[326738120,1715290304291,-500.0,0.00041917,33]
[326738121,1715290304300,-1505.62,0.00041917,33]
[326738122,1715290304310,-2869.9,0.00041917,33]
[326738123,1715290304319,-901.99,0.00041917,33]
[326738124,1715290304328,-874.39,0.00041917,33]
[326738125,1715290304338,-5303.38,0.00041917,33]
[326738126,1715290304347,-500.0,0.00041917,33]
[326738127,1715290304357,-500.0,0.00041917,33]
[326738128,1715290304367,-515.28386827,0.00041917,33]
[326738129,1715290304376,-4913.15,0.00041917,33]
[326738130,1715290304385,-1891.31,0.00041917,33]
[326738131,1715290304395,-500.0,0.00041917,33]
[326738132,1715290304404,-3957.87,0.00041917,33]
[326738133,1715290304414,-500.0,0.00041917,33]
[326738134,1715290304424,-922.39,0.00041917,33]
[326738135,1715290304434,-2211.05,0.00041917,33]
[326738136,1715290304444,-500.0,0.00041917,33]
[326738137,1715290304454,-500.0,0.00041917,33]
[326738138,1715290304464,-500.0,0.00041917,33]
[326738139,1715290304474,-2650.69,0.00041917,33]
[326738140,1715290304484,-1148.13,0.00041917,33]
[326738141,1715290304493,-500.0,0.00041917,33]
[326738142,1715290304503,-500.0,0.00041917,33]
[326738143,1715290304513,-771.66,0.00041917,33]
[326738144,1715290304524,-525.5050879,0.00041917,33]
[326738145,1715290304534,-620.41,0.00041917,33]
[326738146,1715290304544,-500.0,0.00041917,33]
[326738147,1715290304554,-10113.92,0.00041917,33]
[326738148,1715290304564,-52373.85,0.00041917,33]
[326738149,1715290304574,-4283.58,0.00041917,33]
[326738150,1715290304583,-4090.99,0.00041917,33]
[326738151,1715290304593,-4262.89,0.00041917,33]
[326738152,1715290304602,-4360.48,0.00041917,33]
[326738153,1715290304612,-500.0,0.00041917,33]
[326738154,1715290304622,-500.0,0.00041917,33]
[326738155,1715290304632,-1621.56,0.00041917,33]
[326738156,1715290304641,-500.0,0.00041917,33]
[326738157,1715290304651,-500.0,0.00041917,33]
[326738158,1715290304660,-500.0,0.00041917,33]
[326738159,1715290304670,-6734.4,0.00041917,33]
[326738160,1715290304680,-725.22,0.00041917,33]
[326738161,1715290304691,-2161.25,0.00041917,33]
[326738162,1715290304702,-6303.96,0.00041917,33]
[326738163,1715290304712,-761.24,0.00041917,33]
[326738164,1715290304723,-1483.33,0.00041917,33]
[326738165,1715290304734,-151.0,0.00041917,14]
[326738166,1715290304745,-1454.16,0.00041917,33]
[326738167,1715290304755,-500.0,0.00041917,33]
[326738168,1715290304766,-4581.45,0.00041917,33]
[326738169,1715290304777,-500.0,0.00041917,33]
[326738170,1715290304787,-514.99104277,0.00041917,33]
[326738171,1715290304798,-2160.81,0.00041917,33]
[326738172,1715290304808,-151.0,0.00041917,14]
[326738173,1715290304818,-775.78,0.00041917,33]
[326738174,1715290304828,-1346.68,0.00041917,33]
[326738175,1715290304838,-1013.53,0.00041917,33]
[326738176,1715290304851,-1200.0,0.00041917,2]
[326738177,1715290304862,-4643.98,0.00041917,33]
[326738178,1715290304873,-1652.24,0.00041917,33]
[326738179,1715290304883,-3839.55,0.00041917,33]
[326738180,1715290304895,-500.0,0.00041917,33]
[326738181,1715290304905,-3356.51,0.00041917,33]
[326738182,1715290304915,-21416.6,0.00041917,33]
[326738183,1715290304926,-500.0,0.00041917,33]
[326738184,1715290304938,-500.0,0.00041917,33]
[326738185,1715290304948,-1755.99,0.00041917,33]
[326738186,1715290304958,-500.0,0.00041917,33]
[326738187,1715290304967,-500.0,0.00041917,33]
[326738188,1715290304977,-812.02,0.00041917,33]
[326738189,1715290304987,-500.0,0.00041917,33]
[326738190,1715290304997,-500.0,0.00041917,33]